bitfinex/quotes_ETHUSD_20241108
["timestamp","ask_amount","ask_price","bid_price","bid_amount"]
[1731033032335,12.60919791,2904.4,2903.0,0.7774]
[1731033032336,0.00763168,2903.9,2903.0,0.7774]
[1731033032553,0.00763168,2903.7,2903.0,0.7774]
[1731033033342,0.00763168,2903.9,2903.1,0.06887871]
[1731033033539,0.00763168,2903.9,2903.2,0.7774]
[1731033033967,0.00763168,2904.1,2903.2,0.7774]
[1731033034289,0.00763168,2904.1,2903.3,0.0688787]
[1731033034771,0.00763168,2904.1,2903.4,0.7774]
[1731033035278,0.00763168,2904.1,2903.5,0.06887302]
[1731033036084,0.00763168,2904.3,2903.6,0.7561]
[1731033037764,0.00763168,2904.0,2903.6,0.7561]
[1731033039566,0.00763168,2903.9,2903.6,0.7561]
[1731033039950,0.00763168,2903.9,2902.9,0.31585584]
[1731033040154,0.00763168,2904.2,2902.9,0.31585584]
[1731033040361,0.00763168,2904.2,2903.2,0.00975584]
[1731033043185,0.00763168,2904.2,2903.3,0.8005]
[1731033044186,0.00763168,2905.1,2903.9,0.7722]
[1731033044488,0.00763168,2905.1,2904.0,0.55]
[1731033044668,0.00763168,2905.1,2904.1,0.7722]
[1731033044854,0.00763168,2904.9,2904.1,0.7722]
[1731033045194,0.00763168,2905.1,2904.1,0.7722]
[1731033045363,0.00763168,2905.3,2904.1,0.7722]
[1731033045548,0.33609882,2905.3,2904.1,0.7722]
[1731033045755,0.00763168,2905.1,2904.1,0.7722]
[1731033045976,0.00763168,2904.9,2904.1,0.7722]
[1731033046173,0.8074,2905.0,2904.1,0.7722]
[1731033046174,0.00763168,2904.7,2904.1,0.7722]
[1731033046651,0.00763168,2904.5,2904.1,0.7722]
[1731033047178,0.00763168,2904.5,2903.2,0.7788]
[1731033047352,0.00763168,2904.3,2903.2,0.7788]
[1731033047781,0.00763168,2904.1,2903.2,0.7788]
[1731033049056,0.00763168,2903.8,2903.2,0.7788]
[1731033049252,0.00763168,2903.5,2903.2,0.7788]
[1731033049791,0.00763168,2903.5,2902.4,0.7788]
[1731033050098,0.00763168,2903.1,2902.4,0.7788]
[1731033051704,0.00763168,2902.9,2902.4,0.7788]
[1731033051887,0.00763168,2902.9,2901.5,0.00975584]
[1731033051888,0.00763168,2902.9,2901.6,0.7788]
[1731033052195,12.24,2903.3,2902.1,0.7788]
[1731033052196,3.00763168,2903.3,2902.1,0.7788]
[1731033052490,4.53239485,2903.3,2902.1,0.7788]
[1731033052695,4.53239485,2903.3,2902.3,0.7788]
[1731033052861,1.53239485,2903.3,2902.3,0.7788]
[1731033053060,0.00763168,2903.3,2902.3,0.7788]
[1731033053268,0.00763168,2903.3,2902.4,0.0688963]
[1731033053473,0.00763168,2903.3,2902.3,0.7788]
[1731033053761,0.00763168,2903.3,2902.4,0.0688963]
[1731033053968,0.00763168,2903.3,2902.5,0.7788]
[1731033054163,0.00763168,2903.3,2902.7,0.7958]
[1731033054400,0.00763168,2903.5,2902.7,0.7958]
[1731033055227,0.00763168,2903.7,2902.9,0.7958]
[1731033055514,0.00763168,2903.7,2903.0,0.06888704]
[1731033056006,12.24763168,2904.1,2903.1,0.7958]
[1731033056222,12.24763168,2904.1,2902.7,0.00975584]
[1731033056223,13.47239485,2904.1,2903.3,0.7958]
[1731033056519,0.00763168,2904.3,2903.5,0.7958]
[1731033056708,0.83613168,2904.5,2903.5,0.7958]
[1731033056890,0.00763168,2904.3,2903.5,0.7958]
[1731033057211,0.01,2904.3,2902.7,2.80792416]
[1731033057411,0.01,2904.4,2902.8,1.1763487]
[1731033057598,0.01,2904.4,2903.0,0.55]
[1731033057915,0.01,2904.4,2903.2,0.55]
[1731033058324,0.01,2904.4,2903.3,0.06886857]
[1731033058686,0.01,2904.3,2903.3,0.06886857]
[1731033058886,0.01,2904.4,2903.3,0.06886857]
[1731033059120,0.01,2904.3,2903.3,0.06886857]
[1731033059428,0.01,2904.4,2903.3,0.06886857]
[1731033059649,0.01,2904.3,2903.3,0.06886857]
[1731033059822,0.01,2904.4,2903.3,0.06886857]
[1731033060023,0.01,2904.5,2903.3,0.06886857]
[1731033060227,0.312,2904.5,2903.4,0.8067]
[1731033060531,0.01,2904.4,2903.6,0.8067]
[1731033060734,0.01,2904.3,2903.7,0.06886853]
[1731033060922,0.01,2904.3,2903.6,0.8067]
[1731033061125,0.01,2904.1,2903.6,0.8067]
[1731033061323,0.01,2904.1,2901.0,7.41]
[1731033061324,0.01,2903.5,2901.4,0.7747]
[1731033061550,3.27703972,2904.0,2901.9,0.7747]
[1731033061551,0.01,2903.3,2901.9,0.7747]
[1731033061751,0.02,2903.3,2902.4,0.302]
[1731033062546,0.01,2903.1,2902.5,0.7747]
[1731033065251,0.01,2903.3,2902.5,0.7747]
[1731033065565,12.25,2903.5,2902.7,0.8177]
[1731033065850,12.25,2903.5,2902.8,0.06888465]
[1731033066361,12.24,2903.5,2902.9,0.8052]
[1731033066571,12.25,2903.5,2903.0,0.06888368]
[1731033066778,1.225,2903.5,2902.9,0.8052]
[1731033067068,0.01,2903.5,2902.9,0.8052]
[1731033067879,0.02,2903.9,2903.0,0.06888465]
[1731033068059,0.01,2903.7,2902.9,0.8052]
[1731033068373,0.01,2903.3,2902.9,0.8052]
[1731033068671,0.01,2903.3,2902.0,3.0]
[1731033068672,0.01,2903.2,2902.0,0.7514]
[1731033069470,0.01,2903.1,2902.0,0.7514]
[1731033070346,0.01,2903.0,2902.0,0.7514]
[1731033070543,0.01,2902.8,2902.0,0.7514]
[1731033070784,0.302,2902.8,2902.1,0.06890619]
[1731033070981,0.01,2902.9,2902.1,0.06890619]
[1731033071179,0.01,2902.9,2902.0,0.7514]
[1731033071677,0.02,2902.9,2902.0,0.7514]
[1731033072250,3.0,2903.0,2902.1,0.06890314]
[1731033072458,12.25,2903.1,2901.8,1.3014]
[1731033072778,12.25,2903.1,2902.1,0.7514]
[1731033073072,13.55214,2903.1,2902.3,0.7514]
[1731033073278,3.01,2903.4,2902.4,0.06889715]
[1731033073580,0.01,2903.5,2902.5,1.3301]
[1731033073945,0.01,2903.5,2902.6,0.06888725]
[1731033074471,0.01,2903.7,2902.7,0.7529]
[1731033074781,0.01,2903.7,2902.8,0.8217834]
[1731033074994,0.02,2903.7,2902.8,0.7529]
[1731033075897,0.01,2903.9,2902.9,0.61888348]
[1731033076203,0.01,2903.9,2903.0,0.85697375]
[1731033076704,0.01,2903.9,2903.0,0.7881]
[1731033077765,0.02,2904.1,2903.0,0.7881]
[1731033077967,0.02,2903.9,2903.0,0.7881]
[1731033078407,0.01,2903.7,2903.0,0.7881]
[1731033078617,0.01,2904.3,2903.3,0.7941]
[1731033078783,0.01,2904.1,2903.3,0.7941]
[1731033079110,0.01,2904.1,2903.4,0.06887214]
[1731033080010,0.01,2904.1,2903.3,0.7941]
[1731033080211,0.8531,2904.3,2903.4,0.06887214]
[1731033080377,0.312,2904.5,2903.5,0.8198]
[1731033080578,0.01,2904.5,2903.6,0.06886431]
[1731033081312,0.01,2904.5,2903.7,0.8198]
[1731033081480,0.01,2904.8,2903.8,0.06886188]
[1731033081712,0.01,2904.8,2904.0,0.8198]
[1731033082043,0.01,2904.8,2904.1,0.06885557]
[1731033082240,0.01,2904.7,2904.0,0.8198]
[1731033083238,0.01,2904.8,2904.0,0.8198]
[1731033083444,3.8032,2904.9,2904.1,0.06885559]
[1731033083743,3.8032,2904.9,2904.0,0.8198]
[1731033083744,0.01,2904.8,2904.0,0.8198]
[1731033083964,0.02,2905.2,2904.1,0.0688556]
[1731033084126,0.01,2905.2,2904.1,0.7991]
[1731033084448,0.02,2905.4,2904.3,0.7991]
[1731033084745,0.02,2905.4,2904.4,0.068844]
[1731033085148,0.01,2905.4,2904.5,0.7991]
[1731033085315,0.01,2905.4,2904.6,0.06883897]
[1731033085505,0.01,2905.6,2904.7,0.8226]
[1731033086225,0.01,2905.8,2904.8,0.61883811]
[1731033086542,12.25,2906.0,2904.1,3.0]
[1731033086543,0.01,2905.6,2904.9,0.8324]
[1731033086943,0.01,2905.3,2904.1,1.3824]
[1731033087144,0.02,2905.1,2904.1,1.29834397]
[1731033087351,0.02,2905.1,2904.1,0.8324]
[1731033087657,0.01,2904.7,2904.1,0.8324]
[1731033087872,0.02,2905.3,2904.1,0.8324]
[1731033088008,0.01,2905.1,2904.1,0.8324]
[1731033088655,0.01,2905.1,2904.2,0.06884838]
[1731033089514,0.01,2905.0,2904.2,0.06884838]
[1731033089708,0.01,2905.0,2904.1,0.8324]
[1731033089709,0.01,2904.8,2904.1,0.8324]
[1731033092809,0.01,2905.2,2904.2,0.06885211]
[1731033093030,0.01,2905.2,2903.7,3.0]
[1731033093031,0.01,2905.1,2904.0,0.8075]
[1731033093230,0.01,2905.1,2904.2,0.8075]
[1731033093467,0.01,2905.1,2904.4,0.8075]
[1731033093780,0.7747,2905.4,2904.4,0.8075]
[1731033093781,0.01,2905.3,2904.5,0.06884832]
[1731033093985,0.01,2905.3,2904.6,0.8075]
[1731033094274,0.01,2905.3,2904.7,0.06884121]
[1731033094833,0.01,2905.5,2904.7,0.06884121]
[1731033095033,0.01,2905.4,2904.7,0.06884121]
[1731033095268,0.01,2905.4,2904.6,0.8075]
[1731033095473,0.01,2905.3,2904.6,0.8075]
[1731033095773,0.01,2905.3,2903.9,3.21006376]
[1731033095774,0.01,2905.3,2903.9,1.48496357]
[1731033096783,0.01,2905.1,2903.7,3.32770397]
[1731033097075,0.01,2905.1,2903.8,0.66762652]
[1731033097232,0.01,2905.2,2903.8,0.66762652]
[1731033097874,0.01,2905.0,2903.8,0.66762652]
[1731033098759,0.01,2905.0,2903.9,0.422]
[1731033099076,0.01,2905.0,2904.1,0.422]
[1731033099239,0.01,2905.0,2904.2,0.06884974]
[1731033099435,0.01,2905.2,2904.3,0.422]
[1731033099637,0.01,2905.2,2904.4,0.06884571]
[1731033099836,0.01,2905.1,2904.4,0.06884571]
[1731033100266,0.01,2905.1,2904.3,0.422]
[1731033100667,0.02,2905.4,2904.4,0.0688457]
[1731033100872,0.01,2905.4,2904.5,0.422]
[1731033101075,12.25,2905.6,2904.7,0.422]
[1731033101076,0.01,2905.6,2904.7,0.422]
[1731033102404,0.8158,2905.6,2904.7,0.422]
[1731033103377,0.8258,2905.6,2904.8,0.06883726]
[1731033103546,0.8258,2905.6,2904.7,0.422]
[1731033103891,1.20838,2905.6,2904.8,0.06883727]
[1731033104451,1.20838,2905.6,2904.7,0.422]
[1731033105896,1.20838,2905.6,2904.8,0.06883734]
[1731033106197,3.01,2905.8,2904.8,0.06883734]
[1731033106352,0.8428,2905.9,2904.9,0.422]
[1731033106559,0.8528,2905.9,2905.0,0.06883072]
[1731033107289,0.01,2905.6,2904.3,0.422]
[1731033107461,0.01,2905.6,2904.2,0.61882789]
[1731033107462,0.01,2905.6,2904.5,0.422]
[1731033107793,0.01,2905.5,2904.6,0.06883739]
[1731033107953,0.01,2905.5,2904.6,0.06884082]
[1731033108291,0.01,2905.6,2903.8,0.422]
[1731033108292,0.02,2905.1,2903.8,0.422]
[1731033108849,0.02,2905.1,2903.9,0.06884855]
[1731033109669,0.02,2905.1,2903.8,3.422]
[1731033109863,0.8008,2905.0,2903.8,3.422]
[1731033110201,0.01,2905.0,2904.0,0.422]
[1731033111181,0.01,2905.0,2904.1,0.06885002]
[1731033113405,0.8008,2905.2,2904.2,0.422]
[1731033115506,0.8008,2905.2,2904.3,0.0688427]
[1731033116200,0.8203,2905.5,2904.4,0.422]
[1731033118581,0.8203,2905.5,2904.5,0.068835]
[1731033118907,0.763,2905.9,2904.6,2.66006376]
[1731033119264,0.763,2905.9,2904.7,0.76371797]
[1731033119417,0.01,2905.8,2904.7,0.69488988]
[1731033119571,0.7617,2905.4,2903.0,0.422]
[1731033119779,0.7617,2905.2,2903.9,3.972]
[1731033120209,0.7617,2905.2,2903.9,0.422]
[1731033120580,0.02,2905.1,2903.9,0.422]
[1731033120785,0.7617,2905.0,2903.9,0.422]
[1731033120984,0.7617,2905.0,2904.0,0.06885008]
[1731033122932,0.01,2904.8,2904.0,0.31509138]
[1731033123071,0.01,2904.8,2903.2,2.66006376]
[1731033123072,0.02,2904.6,2903.2,2.66006376]
[1731033123272,0.01,2904.4,2903.3,0.422]
[1731033123719,0.7968,2904.1,2903.0,0.422]
[1731033124021,0.8068,2904.1,2902.7,0.90834809]
[1731033124184,0.8068,2904.1,2902.8,0.35684119]
[1731033124523,0.7541,2903.8,2902.9,0.06887246]
[1731033125528,0.7541,2903.6,2902.2,0.422]
[1731033125717,0.7641,2903.6,2902.2,0.422]
[1731033126025,0.7521,2903.1,2902.2,0.422]
[1731033126328,0.7521,2903.1,2902.3,0.06889109]
[1731033127129,0.01,2903.5,2902.3,0.06889109]
[1731033127533,0.7521,2903.2,2902.2,0.422]
[1731033127919,0.7521,2903.2,2901.9,3.08206376]
[1731033128133,0.7521,2903.2,2902.0,0.55]
[1731033128721,0.7521,2903.2,2901.9,0.422]
[1731033128925,0.01,2903.1,2901.9,0.422]
[1731033129351,0.7521,2903.2,2902.0,0.06889267]
[1731033129513,0.7521,2903.2,2902.1,0.31509564]
[1731033129710,0.7521,2903.2,2902.2,0.06888955]
[1731033130215,0.7521,2903.2,2902.1,0.31509564]
[1731033130415,0.7621,2903.2,2902.1,0.31509564]
[1731033130648,0.8028,2903.1,2901.9,0.422]
[1731033132345,0.8028,2903.1,2901.7,0.55]
[1731033132517,0.8018,2902.6,2901.5,1.37788]
[1731033132715,0.01,2902.4,2901.3,0.422]
[1731033132918,0.8018,2902.3,2901.4,0.06891334]
[1731033133216,0.8118,2902.3,2901.0,3.08206376]
[1731033133560,0.8018,2902.0,2901.1,0.30820638]
[1731033133715,0.8018,2902.0,2900.7,0.422]
[1731033134217,0.8118,2902.0,2900.8,0.06892141]
[1731033134764,0.8118,2902.0,2900.7,3.08206376]
[1731033134930,0.8118,2902.0,2900.8,0.0689175]
[1731033134931,0.8018,2902.0,2900.8,0.0689175]
[1731033135119,0.8018,2902.0,2900.9,0.31509813]
[1731033135325,0.8018,2902.0,2901.0,0.0689175]
[1731033135565,0.8118,2902.0,2900.9,0.31509813]
[1731033135856,0.7734,2901.5,2900.5,1.378322]
[1731033136269,0.7734,2901.5,2900.6,0.06893185]
[1731033136766,0.7734,2901.5,2900.1,4.08462]
[1731033136767,0.01,2901.4,2900.1,4.08462]
[1731033136920,0.01,2901.4,2900.1,1.42455624]
[1731033137227,0.01,2901.4,2900.2,1.53308186]
[1731033137434,0.01,2901.4,2900.2,1.60201632]
[1731033138017,0.7734,2901.5,2900.2,4.60201632]
[1731033138244,0.7734,2901.5,2900.6,0.422]
[1731033138641,0.7734,2901.5,2900.5,3.0]
[1731033138890,0.7734,2901.5,2900.6,0.3]
[1731033139073,0.7734,2901.5,2900.5,3.0]
[1731033139439,0.7734,2901.5,2900.7,2.66006376]
[1731033140969,0.7734,2901.5,2900.6,0.55]
[1731033142190,0.01,2901.4,2900.3,0.422]
[1731033142501,0.8108,2901.2,2900.2,1.53308186]
[1731033142855,0.8108,2901.2,2900.3,0.06893975]
[1731033143351,0.8008,2901.2,2900.2,1.53308186]
[1731033143552,0.8008,2901.2,2900.3,0.48824824]
[1731033143849,0.8008,2901.2,2900.4,0.55]
[1731033144167,0.8008,2901.2,2900.5,3.0]
[1731033146075,0.8008,2901.2,2900.4,0.55]
[1731033146810,0.8008,2901.2,2900.5,3.06892955]
[1731033147099,0.8008,2901.2,2900.6,0.36189295]
[1731033148811,0.8008,2901.2,2900.7,0.06893027]
[1731033148962,0.8029,2901.7,2900.6,0.78389295]
[1731033150487,0.8029,2901.7,2900.7,0.55]
[1731033151108,0.8129,2901.7,2900.6,0.36189295]
[1731033151317,0.8129,2901.7,2898.0,1.72572729]
[1731033151318,0.8247,2901.1,2899.7,3.85546376]
[1731033151603,0.8347,2901.1,2899.7,3.08206376]
[1731033151964,0.8347,2901.1,2899.2,0.41957578]
[1731033151965,0.8247,2900.9,2899.4,3.08206376]
[1731033152168,0.8247,2900.9,2899.4,4.46090676]
[1731033152604,0.8247,2900.9,2900.1,0.06894413]
[1731033152967,0.8247,2900.9,2900.0,13.48426236]
[1731033153193,0.8247,2900.9,2900.1,1.34842624]
[1731033154722,0.754,2900.7,2900.0,13.48426236]
[1731033154869,0.764,2900.7,2900.0,13.48426236]
[1731033155067,0.754,2900.7,2900.0,13.48426236]
[1731033155605,0.764,2900.7,2900.0,13.48426236]
[1731033155810,0.764,2900.7,2900.1,0.06895212]
[1731033155981,0.754,2900.7,2900.2,1.35532145]
[1731033156610,0.754,2900.7,2900.3,0.06895209]
[1731033157721,0.754,2900.7,2900.2,1.35532145]
[1731033158292,0.754,2900.7,2900.3,0.06894601]
[1731033159282,0.764,2900.7,2900.0,13.48426236]
[1731033159713,0.774,2900.7,2900.0,13.48426236]
[1731033160420,0.01,2900.5,2900.0,13.48426236]
[1731033160624,0.7958,2900.4,2900.0,13.48426236]
[1731033160833,6.47586376,2900.1,2900.0,12.65096236]
[1731033160992,6.47586376,2900.1,2900.0,11.81766236]
[1731033161431,6.47586376,2900.1,2900.0,10.15106236]
[1731033161600,5.68006376,2900.1,2900.0,8.90636236]
[1731033161804,6.24907014,2900.1,2900.0,8.90636236]
[1731033162289,0.01,2899.4,2897.8,0.7933]
[1731033162494,0.01,2899.4,2897.9,0.06899215]
[1731033162721,0.02,2899.4,2897.9,0.06899215]
[1731033162929,3.02,2899.4,2897.4,0.7933]
[1731033163132,3.02,2899.4,2897.3,0.17271907]
[1731033163338,3.02,2899.4,2897.6,0.7646]
[1731033163635,3.02,2899.4,2897.7,0.06899323]
[1731033163811,3.02,2899.4,2897.6,0.7646]
[1731033164137,3.02,2899.4,2897.7,0.06899404]
[1731033164697,3.02,2899.4,2897.6,0.7646]
[1731033165241,3.57,2899.4,2897.6,0.7646]
[1731033165400,5.45788938,2899.4,2897.6,0.7646]
[1731033165830,5.46788938,2899.4,2897.0,0.7646]
[1731033165998,17.71788938,2899.4,2897.0,0.7646]
[1731033166338,17.71788938,2899.4,2897.0,0.83360322]
[1731033166901,17.69788938,2899.4,2897.7,0.8208]
[1731033167233,17.71788938,2899.4,2897.1,0.8208]
[1731033167440,17.70788938,2899.4,2897.2,0.06900543]
[1731033167734,17.70788938,2899.4,2897.1,0.8208]
[1731033167933,17.69788938,2899.4,2897.2,0.06899958]
[1731033168247,17.69788938,2899.4,2897.1,0.8208]
[1731033168605,17.70788938,2899.4,2897.1,0.8208]
[1731033169029,17.71788938,2899.4,2897.1,0.8208]
[1731033170113,17.89602643,2899.4,2897.1,0.8208]
[1731033170438,17.89602643,2899.4,2899.3,0.0635779]
[1731033171967,0.01,2898.1,2897.1,0.8208]
[1731033172117,0.02,2898.1,2897.1,0.8208]
[1731033173812,0.01,2898.3,2897.2,0.06901658]
[1731033174143,0.02,2898.4,2897.3,0.754]
[1731033174452,0.01,2898.2,2897.3,0.754]
[1731033174739,15.24,2898.5,2897.4,0.0690116]
[1731033174740,12.24,2898.5,2897.4,0.0690116]
[1731033175262,12.24,2898.5,2897.3,0.754]
[1731033175263,12.24,2898.5,2897.5,0.754]
[1731033176351,0.01,2899.0,2897.7,0.7531]
[1731033176593,0.01,2899.0,2897.9,0.7531]
[1731033176861,0.02,2899.0,2897.9,0.7531]
[1731033177531,0.01,2899.0,2898.0,0.06899168]
[1731033178173,0.02,2899.0,2897.9,0.7531]
[1731033178470,0.02,2899.0,2898.0,0.06899169]
[1731033178674,0.01,2899.0,2897.9,0.7531]
[1731033179527,3.0,2899.7,2897.9,0.7531]
[1731033179528,0.02,2898.7,2897.9,0.7531]
[1731033179684,0.01,2898.7,2898.0,0.06899884]
[1731033179979,0.02,2898.7,2897.9,0.7531]
[1731033181535,0.01,2898.9,2898.0,0.06900291]
[1731033181769,0.01,2898.9,2897.9,0.7531]
[1731033182747,0.01,2898.9,2898.0,0.06899202]
[1731033182951,3.01,2899.1,2898.0,0.06899202]
[1731033183170,3.01,2899.1,2897.7,0.8329]
[1731033183391,3.01,2899.1,2897.9,0.8329]
[1731033183562,12.24,2899.2,2898.0,0.61899125]
[1731033183766,0.02,2899.5,2898.3,0.8329]
[1731033183965,0.02,2899.5,2898.5,0.8329]
[1731033184811,0.01,2899.0,2897.4,3.8329]
[1731033184965,0.01,2899.0,2897.6,0.8329]
[1731033185475,0.01,2899.1,2897.7,0.61899209]
[1731033185691,0.01,2899.2,2897.8,0.8329]
[1731033185896,0.01,2899.2,2897.9,0.8329]
[1731033186203,0.01,2899.2,2898.0,0.87168853]
[1731033186562,0.01,2899.2,2898.0,0.8027]
[1731033186964,0.01,2899.0,2898.0,0.8027]
[1731033187604,0.01,2898.8,2898.0,0.8027]
[1731033188016,0.01,2898.6,2897.3,0.7649]
[1731033188165,0.01,2898.4,2897.3,0.7649]
[1731033188467,0.01,2898.0,2897.3,0.7649]
[1731033188663,0.01,2898.0,2897.4,0.06901695]
[1731033190969,0.01,2898.3,2897.4,0.06901695]
[1731033191467,12.24,2898.5,2897.4,0.06901695]
[1731033191667,12.24,2898.5,2897.6,0.7649]
[1731033192073,0.02,2898.9,2897.8,0.7649]
[1731033192671,0.02,2899.2,2898.0,0.7649]
[1731033193013,0.01,2899.2,2898.0,0.7649]
[1731033193166,0.01,2899.2,2898.2,0.7984]
[1731033193370,0.01,2899.2,2898.3,0.06898725]
[1731033193610,0.01,2899.8,2898.4,0.7984]
[1731033193765,0.01,2899.8,2898.3,0.06898725]
[1731033193766,0.01,2899.8,2898.6,0.7984]
[1731033194101,0.01,2899.8,2898.8,0.7984]
[1731033194308,0.01,2899.8,2898.9,0.06896975]
[1731033194713,0.01,2900.3,2899.1,0.55]
[1731033194881,0.01,2900.5,2899.3,0.55]
[1731033195085,0.01,2900.5,2899.5,0.7984]
[1731033195629,0.01,2900.3,2899.5,0.7984]
[1731033195907,0.01,2899.8,2899.2,0.7984]
[1731033196217,3.06889378,2900.6,2899.2,0.7984]
[1731033196218,0.02,2900.0,2899.3,0.06897215]
[1731033196412,0.01,2899.8,2899.2,0.7984]
[1731033196777,0.01,2900.0,2899.3,0.06897219]
[1731033197004,0.01,2900.2,2899.2,0.7984]
[1731033197218,0.01,2900.3,2899.2,0.7984]
[1731033197512,0.01,2900.2,2899.2,0.7984]
[1731033197887,0.01,2899.4,2898.7,0.7984]
[1731033198088,0.01,2899.2,2897.8,0.7984]
[1731033199342,0.01,2899.0,2897.8,0.7984]
[1731033199489,0.02,2899.0,2897.8,0.7984]
[1731033199832,0.01,2898.8,2897.8,0.7984]
[1731033199994,0.02,2899.0,2897.9,0.06899581]
[1731033200529,0.02,2899.0,2897.8,0.7984]
[1731033201088,0.01,2898.8,2897.8,0.7984]
[1731033201636,0.01,2898.3,2897.0,0.7873]
[1731033201849,0.01,2898.3,2897.1,0.38561938]
[1731033202132,3.0,2898.8,2897.0,0.7873]
[1731033202133,0.01,2898.1,2897.0,0.7873]
[1731033204191,0.01,2898.3,2897.1,0.06901729]
[1731033204403,0.01,2898.2,2897.0,0.7873]
[1731033204612,0.01,2898.2,2897.1,0.38561938]
[1731033205005,0.01,2898.1,2897.1,0.38561938]
[1731033205422,0.01,2898.2,2897.1,0.38561938]
[1731033205597,0.01,2898.0,2897.1,0.38561938]
[1731033205945,0.01,2898.4,2897.2,0.06901751]
[1731033206230,0.322,2898.4,2897.2,0.06901751]
[1731033206433,0.02,2898.4,2897.2,0.06901751]
[1731033206604,0.02,2898.4,2897.1,0.38561938]
[1731033207238,0.01,2898.4,2897.3,1.3671]
[1731033207532,0.01,2898.1,2897.3,0.8171]
[1731033207696,0.01,2898.4,2897.4,0.06901303]
[1731033207890,0.01,2898.3,2897.4,0.06901303]
[1731033208092,0.01,2898.4,2897.4,0.06901303]
[1731033208309,0.01,2898.6,2897.3,0.8171]
[1731033208310,0.01,2898.3,2897.3,0.8171]
[1731033208602,0.01,2898.1,2897.1,0.38561938]
[1731033209738,0.01,2898.1,2897.1,0.45463245]
[1731033209922,0.01,2898.1,2897.1,0.38561938]
[1731033210740,0.01,2898.0,2897.1,0.38561938]
[1731033211348,0.01,2897.9,2897.1,0.38561938]
[1731033211639,0.01,2898.2,2897.2,0.88612208]
[1731033211824,0.01,2898.2,2897.2,0.8171]
[1731033212197,0.02,2898.2,2896.9,3.06889378]
[1731033212538,0.02,2898.2,2897.1,0.55]
[1731033212539,0.01,2898.2,2897.1,0.55]
[1731033212707,0.01,2898.2,2897.2,0.8171]
[1731033213098,0.01,2898.1,2897.2,0.8171]
[1731033214323,0.01,2898.6,2897.3,3.13790829]
[1731033214670,0.01,2898.2,2897.4,0.39550083]
[1731033215024,0.01,2898.2,2897.2,0.8171]
[1731033215722,0.01,2898.4,2897.2,0.8171]
[1731033215941,0.01,2898.2,2897.3,0.06901072]
[1731033216253,0.01,2898.2,2897.2,0.8171]
[1731033217072,0.01,2898.1,2897.2,0.8171]
[1731033217658,0.02,2898.3,2897.0,3.30688938]
[1731033217828,0.01,2898.1,2897.1,0.63757832]
[1731033218822,0.02,2898.3,2897.2,0.06901383]
[1731033219048,0.01,2898.5,2897.2,0.88611383]
[1731033219264,0.01,2898.3,2897.2,0.88610646]
[1731033219426,0.01,2898.3,2897.2,0.8171]
[1731033219873,0.01,2898.6,2897.3,3.61889378]
[1731033220050,0.01,2898.6,2897.4,0.44359938]
[1731033220929,0.01,2898.7,2897.6,0.8326]
[1731033223831,0.716923,2899.5,2897.9,0.8272]
[1731033224030,0.01,2899.8,2898.4,0.55]
[1731033224272,0.01,2899.8,2898.5,3.06889378]
[1731033224636,0.01,2899.6,2898.6,0.30688938]
[1731033224782,0.01,2899.6,2898.3,0.8272]
[1731033225444,0.02,2899.5,2898.3,0.8272]
[1731033225645,0.02,2899.5,2898.3,0.89618686]
[1731033225852,0.01,2899.2,2898.3,0.8272]
[1731033226288,0.01,2899.5,2898.4,0.06898685]
[1731033226453,3.0,2899.9,2898.4,0.06898685]
[1731033226454,0.01,2899.8,2898.5,3.06889378]
[1731033226670,0.01,2899.8,2898.7,0.8247]
[1731033227654,0.02,2900.2,2898.8,0.55]
[1731033228286,0.01,2900.4,2899.1,0.7923]
[1731033228506,0.02,2900.4,2899.2,0.06896066]
[1731033228779,0.02,2900.4,2899.3,0.06895834]
[1731033228962,0.02,2900.4,2899.1,0.7923]
[1731033229288,0.01,2900.4,2899.2,0.50318834]
[1731033229464,0.01,2900.4,2899.2,0.43423]
[1731033229465,0.02,2900.4,2899.2,0.43423]
[1731033230106,0.01,2900.6,2899.2,0.43423]
[1731033230290,0.01,2900.4,2899.3,0.06895831]
[1731033230492,0.02,2900.6,2899.4,0.55]
[1731033231012,0.02,2900.6,2899.2,0.43423]
[1731033231013,0.02,2900.6,2899.3,0.55]
[1731033231212,0.01,2900.4,2899.3,0.55]
[1731033231389,0.02,2900.4,2899.2,0.43423]
[1731033233060,0.02,2900.6,2899.3,0.55]
[1731033233771,0.01,2900.4,2899.3,0.55]
[1731033235205,0.02,2900.6,2899.3,0.55]
[1731033235362,0.01,2900.4,2899.3,0.55]
[1731033236287,0.01,2900.4,2899.2,0.43423]
[1731033236288,0.02,2900.4,2899.2,0.43423]
[1731033237118,0.02,2900.6,2899.3,0.55]
[1731033237290,0.01,2900.4,2899.3,0.55]
[1731033238077,0.02,2900.6,2899.3,0.55]
[1731033238279,0.02,2900.4,2899.3,0.177653]
[1731033239798,0.01,2900.2,2899.3,0.177653]
[1731033240727,0.01,2899.8,2898.5,3.82909378]
[1731033240900,0.01,2899.7,2898.5,0.7602]
[1731033241101,0.01,2899.7,2898.5,0.82917272]
[1731033241296,0.01,2899.8,2898.5,3.49906371]